Cogmind - Beta 11.1 @@@ ROGUE MODE // 2022.05.15 @ 01:29:41 Player: laserbat Result: Destroyed by G-47 Trooper with Particle Gun Performance ------------- Evolutions (2) 1000 Regions Visited (4) 800 Robots Destroyed (0) 0 Value Destroyed (10) 10 Prototype IDs (0) 0 Alien Tech Used (0) 0 Bonus (620) 620 TOTAL SCORE: 2430 Bonus ------- Pacifist 470 Follower Combat Kills 150 Cogmind --------- Core Integrity 0/550 Matter 299/300 Energy 98/100 System Corruption 0% Temperature Cool (9) Movement Core (50) Location -8/Storage Parts ------- > --- POWER (5) -------- (None) > --- PROPULSION (2) --- (None) > --- UTILITY (2) ------ Propulsion Shielding Propulsion Shielding > --- WEAPON (2) ------- Mini Grenade Launcher > --- INVENTORY (5) ---- Hacking Suite Grenade Launcher Mini Grenade Launcher Mini Grenade Launcher Mini Grenade Launcher Peak State ------------ > --- POWER ------------ (None) > --- PROPULSION ------- (None) > --- UTILITY ---------- Propulsion Shielding Propulsion Shielding > --- WEAPON ----------- Mini Grenade Launcher > --- INVENTORY -------- Hacking Suite Grenade Launcher Mini Grenade Launcher Mini Grenade Launcher Mini Grenade Launcher [Rating: 5] Favorites ----------- Power None Propulsion None Utility Propulsion Shielding Protection Propulsion Shielding Weapon Mini Grenade Launcher Launcher Mini Grenade Launcher Build | -11 -10 -9 -8 -8 ------- Run | Scr Mat Mat Mat Sto Slots Evolved 4 | . . 2 2 . Power 4 | . . 2 2 . Propulsion . | . . . . . Utility . | . . . . . Weapon . | . . . . . Parts Attached 4 | . 2 1 . 1 Power . | . . . . . Engine . | . . . . . Core . | . . . . . Reactor . | . . . . . Propulsion . | . . . . . Treads . | . . . . . Leg . | . . . . . Wheel . | . . . . . Hover . | . . . . . Flight . | . . . . . Utility 2 | . 2 . . . Device . | . . . . . Storage . | . . . . . Processor . | . . . . . Hackware . | . . . . . Protection 2 | . 2 . . . Artifact . | . . . . . Weapon 2 | . . 1 . 1 Energy Gun . | . . . . . Energy Cannon . | . . . . . Ballistic Gun . | . . . . . Ballistic Cannon . | . . . . . Launcher 2 | . . 1 . 1 Special Weapon . | . . . . . Impact Weapon . | . . . . . Slashing Weapon . | . . . . . Piercing Weapon . | . . . . . Special Melee Weapon . | . . . . . Unidentified Prototypes . | . . . . . Parts Lost . | . . . . . Power . | . . . . . Propulsion . | . . . . . Utility . | . . . . . Weapon . | . . . . . Highest Loss Streak . | . . . . . To Critical Strikes . | . . . . . Average Slot Usage (%) 19 | . 7 23 18 21 Protection 17 | . 7 22 18 18 Launcher 2 | . . 1 . 3 Naked Turns 31 | . 31 . . . Heaviest Build 5 | . 2 5 2 3 Greatest Support 3 | 3 3 3 3 3 Greatest Overweight (x) 1 | . . 1 . . Average Overweight (x) . | . . . . . Largest Inventory Capacity 5 | 5 5 5 5 5 Average Capacity 5 | 5 5 5 5 5 Most Carried 5 | 4 5 5 5 5 Average Carried 4 | 2 2 4 5 4 Final Capacity 5 | 5 5 5 5 5 Final Carried 5 | . 5 4 5 5 Class Distribution -------------------- 92% | Mutant 7% | Commander-Mutant Dominant Class ---------------- Mutant | -10/Materials Mutant | -9/Materials Mutant | -8/Materials Mutant | -8/Storage Resources | -11 -10 -9 -8 -8 ----------- Run | Scr Mat Mat Mat Sto Matter Collected 240 | 200 . . . 40 Remotely . | . . . . . Salvage Created . | . . . . . Parts . | . . . . . Haulers Intercepted . | . . . . . Recyclers Shooed . | . . . . . Parts Field Recycled . | . . . . . Retrieved Matter . | . . . . . Parts Self-Destructed . | . . . . . Prevented . | . . . . . Kills | -11 -10 -9 -8 -8 ------- Run | Scr Mat Mat Mat Sto Combat Hostiles Destroyed . | . . . . . Classes Destroyed . | . . . . . Best Kill Streak . | . . . . . Combat Bots Only . | . . . . . Max Kills in Single Turn . | . . . . . Gunslinging . | . . . . . Exploded . | . . . . . Melee . | . . . . . Uniques/NPCs Destroyed . | . . . . . Combat | -11 -10 -9 -8 -8 -------- Run | Scr Mat Mat Mat Sto Damage Taken 800 | . 45 153 124 478 Core 753 | . 45 153 122 433 Absorbed by Shields . | . . . . . Core Remaining (%) 81 | 100 82 61 . . Volleys Fired 1 | . . 1 . . Largest 1 | . . 1 . . Hottest 30 | . . 30 . . Shots Fired 1 | . . 1 . . Gun . | . . . . . Cannon . | . . . . . Launcher 1 | . . 1 . . Special . | . . . . . Kinetic . | . . . . . Thermal . | . . . . . Explosive 1 | . . 1 . . Electromagnetic . | . . . . . Robot Hit Streak . | . . . . . Robot Miss Streak . | . . . . . Penetration Max . | . . . . . Secondary Targets . | . . . . . Shots Hit Robots . | . . . . . Core Hits 1 | . . . 1 . Critical Kills . | . . . . . Critical Parts Destroyed . | . . . . . Critical Strikes . | . . . . . Melee Attacks . | . . . . . Impact . | . . . . . Slashing . | . . . . . Piercing . | . . . . . Sneak Attacks . | . . . . . Combat Hostiles . | . . . . . Follow-up Attacks . | . . . . . Damage Inflicted 12 | . . . 12 . Guns . | . . . . . Cannons . | . . . . . Explosions . | . . . . . Melee . | . . . . . Ramming 12 | . . . 12 . Kinetic . | . . . . . Thermal . | . . . . . Explosive . | . . . . . Electromagnetic . | . . . . . Impact . | . . . . . Slashing . | . . . . . Piercing . | . . . . . Highest Corruption . | . . . . . Average Corruption . | . . . . . Corruption Purged . | . . . . . Corruption Blocked . | . . . . . Overload Shots . | . . . . . Overflow Damage . | . . . . . Projectiles . | . . . . . Explosions . | . . . . . Melee . | . . . . . Knockbacks . | . . . . . Impact . | . . . . . Kinetic . | . . . . . Secondary . | . . . . . Self-Inflicted Damage 17 | . . 11 6 . Shots 1 | . . 1 . . Rammed 2 | . . . 2 . Targets Rammed 2 | . . . 2 . Kicked . | . . . . . Crushed . | . . . . . Highest Temperature . | . . . . . Average Temperature . | . . . . . Received Heat Transfer 258 | . 24 36 63 135 Siege Activations . | . . . . . Robots Corrupted . | . . . . . Combat Hostiles . | . . . . . Parts Fried . | . . . . . Impact Corruptions . | . . . . . Robots Melted . | . . . . . Combat Hostiles . | . . . . . Parts Melted . | . . . . . Heat Transferred . | . . . . . Parts Sabotaged . | . . . . . Parts Stolen . | . . . . . Parts Stripped . | . . . . . Power Chain Reactions . | . . . . . Missiles Intercepted . | . . . . . Alert | -11 -10 -9 -8 -8 ------- Run | Scr Mat Mat Mat Sto Peak Influence 230 | . 15 103 57 230 Initial 42 | . . 5 42 24 Average 59 | . 4 33 49 91 Maximum Alert Level 1 | . . . . 1 Low Security (%) 93 | 100 100 100 100 87 Level 1 6 | . . . . 12 Level 2 . | . . . . . Level 3 . | . . . . . Level 4 . | . . . . . Level 5 . | . . . . . High Security . | . . . . . Max Security . | . . . . . Squads Dispatched 5 | . 1 . . 4 Investigation 2 | . . . . 2 Extermination . | . . . . . Reinforcement 3 | . 1 . . 2 Assault . | . . . . . Garrison . | . . . . . Intercept . | . . . . . Searches Triggered . | . . . . . Construction Impeded . | . . . . . Haulers Reinforced . | . . . . . Active Scanning Responses . | . . . . . Cargo Convoy Interrupts . | . . . . . Stealth | -11 -10 -9 -8 -8 --------- Run | Scr Mat Mat Mat Sto Distress Signals 1 | . . . . 1 Communications Jammed . | . . . . . Distress Signals . | . . . . . Times Spotted 25 | . 2 3 3 17 Peak Tracking Total 9 | . 2 3 3 9 Tactical Retreats . | . . . . . Traps | -11 -10 -9 -8 -8 ------- Run | Scr Mat Mat Mat Sto Traps Triggered 1 | . . . . 1 Indirectly . | . . . . . Trap Hack Attempts . | . . . . . Triggered . | . . . . . Disarmed . | . . . . . Reprogrammed . | . . . . . Reused . | . . . . . Traps Extracted . | . . . . . Installed . | . . . . . Triggered . | . . . . . Machines | -11 -10 -9 -8 -8 ---------- Run | Scr Mat Mat Mat Sto Machines Disabled 1 | . . 1 . . Max in Single Turn 1 | . . 1 . . Machines Sabotaged . | . . . . . Garrisons Compromised . | . . . . . Overloaded Fab Kills . | . . . . . Hacking | -11 -10 -9 -8 -8 --------- Run | Scr Mat Mat Mat Sto Machines Accessed 4 | . . 2 . 2 Terminals 4 | . . 2 . 2 Fabricators . | . . . . . Repair Stations . | . . . . . Recycling Units . | . . . . . Scanalyzers . | . . . . . Garrison Access . | . . . . . Total Hacks 10 | . . 5 . 5 Successful 4 | . . 2 . 2 Failed 6 | . . 3 . 3 Catastrophic 1 | . . 1 . . Database Lockouts . | . . . . . Manual 9 | . . 5 . 4 Terminals 10 | . . 5 . 5 Fabricators . | . . . . . Repair Stations . | . . . . . Recycling Units . | . . . . . Scanalyzers . | . . . . . Garrison Access . | . . . . . Terminal Hacks 2 | . . 1 . 1 Level Access Points 1 | . . 1 . . Branch Access Points 1 | . . . . 1 Fabricator Hacks . | . . . . . Repair Station Hacks . | . . . . . Recycling Unit Hacks . | . . . . . Scanalyzer . | . . . . . Garrison Access Hacks . | . . . . . Unauthorized Hacks 2 | . . 1 . 1 Terminals 2 | . . 1 . 1 Botnet 2 | . . 1 . 1 Fabricators . | . . . . . Repair Stations . | . . . . . Recycling Units . | . . . . . Scanalyzers . | . . . . . Garrison Access . | . . . . . Data Cores Recovered . | . . . . . Used . | . . . . . Hacking Detections 2 | . . 1 . 1 Full Trace Events 2 | . . 1 . 1 Feedback Events . | . . . . . Feedback Blocked . | . . . . . Robot Schematics Acquired . | . . . . . Robots Built . | . . . . . Authchips . | . . . . . Time . | . . . . . Total Robot Build Rating . | . . . . . Part Schematics Acquired . | . . . . . Parts Built . | . . . . . Authchips . | . . . . . Time . | . . . . . Total Part Build Rating . | . . . . . Parts Repaired . | . . . . . Time . | . . . . . Parts Recycled . | . . . . . Recycled Matter . | . . . . . Retrieved Matter . | . . . . . Retrieved Components . | . . . . . Parts Scanalyzed . | . . . . . Part Schematics Acquired . | . . . . . Parts Damaged . | . . . . . Bothacking | -11 -10 -9 -8 -8 ------------ Run | Scr Mat Mat Mat Sto Used RIF Installer . | . . . . . Robots Hacked . | . . . . . Non-combat . | . . . . . Combat . | . . . . . Robot Hacks Applied . | . . . . . Relay Couplers Released . | . . . . . Fabnet Peak Effective % . | . . . . . Robots Rewired 2 | . . . . 2 Allies Hacked . | . . . . . Hacks Repelled . | . . . . . Allies | -11 -10 -9 -8 -8 -------- Run | Scr Mat Mat Mat Sto Total Allies 10 | . . . . 10 Largest Group 10 | . . . . 10 Highest-Rated Group 173 | . . . . 173 Highest-Rated Ally 29 | . . . . 29 Total Orders . | . . . . . Ally Attacks 52 | . . . . 52 Total Damage 742 | . . . . 742 Kills 8 | . . . . 8 Allies Corrupted . | . . . . . Allies Melted . | . . . . . Intel | -11 -10 -9 -8 -8 ------- Run | Scr Mat Mat Mat Sto Robot Analysis Total . | . . . . . Derelict Logs Recovered . | . . . . . Drone Launches . | . . . . . Drone Recoveries . | . . . . . Exploration | -11 -10 -9 -8 -8 ------------- Run | Scr Mat Mat Mat Sto Turns Passed 265 | 3 44 65 15 138 Spaces Moved 479 | 1 71 117 26 264 Core 479 | 1 71 117 26 264 Treads . | . . . . . Legs . | . . . . . Wheels . | . . . . . Hover . | . . . . . Flight . | . . . . . Fastest Speed 50 | 50 50 50 50 50 Average Speed 50 | 50 50 53 50 50 Slowest Speed 100 | 50 50 100 50 50 Overloaded Moves . | . . . . . Propulsion Burnouts . | . . . . . Robots Hopped . | . . . . . Cave-ins Triggered . | . . . . . Exploration Rate (%) 15 | 2 15 21 3 37 Regions Visited 4 Branch Regions 1 Pre-discovered Areas 1 | . . . . 1 Known Exits Taken 1 | . . 1 . . Unknown Exits Taken 3 | 1 1 . 1 . Scrap Searched . | . . . . . Spaces Dug . | . . . . . Terrain Destroyed 10 | . . 10 . . Melee . | . . . . . Projectile . | . . . . . AOE 10 | . . 10 . . Terrain Rammed . | . . . . . Walls Destroyed . | . . . . . Machines Disabled . | . . . . . Actions | -11 -10 -9 -8 -8 --------- Run | Scr Mat Mat Mat Sto Total 498 | 5 77 118 28 270 Wait 1 | . . . . 1 Move 476 | . 70 116 26 264 Hop . | . . . . . Pick Up 6 | . 5 . . 1 Fast Attach 2 | . 2 . . . Attach 2 | . . 1 . 1 Detach 1 | . . . 1 . Swap . | . . . . . Drop 5 | 5 . . . . Fire 1 | . . 1 . . Melee . | . . . . . Ram 1 | . . . 1 . Kick . | . . . . . Crush . | . . . . . Escape Stasis . | . . . . . Rewire 3 | . . . . 3 Trap . | . . . . . Miscellaneous . | . . . . . Route ------- -11/Scrapyard -10/Materials -9/Materials (discovered 3 exits: *Mat x3) -8/Materials -8/Storage (discovered 1 exit: Rec) History --------- Turn | Location | Event 1 | -11/Scrapyard | Released all parts (6) 4 | -11/Scrapyard | Discovered new exit (range 0) 4 | -11/Scrapyard | Entered Materials 42 | -10/Materials | Discovered new exit (range 10) 48 | -10/Materials | Entered another Materials area 48 | -9/Materials | Evolved 2 slots: Power x2 84 | -9/Materials | Identified exit to Materials 113 | -9/Materials | Entered another Materials area 113 | -8/Materials | Evolved 2 slots: Power x2 120 | -8/Materials | Discovered new exit (range 15) 128 | -8/Materials | Entered Storage 197 | -8/Storage | Core integrity fell below 50% 222 | -8/Storage | Assisted by bots powering up and referring to "LRC-V3" 227 | -8/Storage | Learned location of Armory (-3) 241 | -8/Storage | Core integrity fell below 20% 258 | -8/Storage | Identified exit to Recycling 266 | -8/Storage | Destroyed by G-47 Trooper with Particle Gun Last Messages --------------- stragglers, and you certainly look like you're straggling." 00227_ QN-DJL(g): "We'll attack Armory later, meet at one of the rendevous points." World map updated: -3/Armory. 00227_ QN-DJL(g) slips back into hiding. 00227_ Penetrated by Slug. 00230_ H-55 Commando destroyed. 00231_ K-01 Serf collects debris. 00233_ Y-45 Defender suffers critical hit (Burn). 00234_ Trooper 3a destroyed. 00235_ Acquired 40 matter. 00235_ Y-45 Defender destroyed. 00236_ H-55 Commando destroyed. 00237_ Trooper 3b destroyed. 00239_ K-01 Serf collects debris. 00258_ Connecting with Terminal... >>Access(Branch) Found 1 branch access point: (8,64) Recycling Map updated. Map ----- +----------------------------------------------------+ | ????????????????????????????????????????# | | ????????????????????????????????????????# | | ????????????????????????????????????????# | | ????????????????????????????????????????# | | ????????????????????????????????????????# | | ???#####????????????????????????????????## | | ???# #?????????????????????????????????# | | ???# #?????????????????????????????????# | | ???# #?????????????????????????????????# | | ???# #?????????????????????????????????# | | ???# #?????????????????????????????????? | | ???# +??????????????????????##?????????? | | ???# #???????????????????#### #####????? | | ???# #???????????????????# #??### | | ???# #???????????????????# #?? | | ???# #???????????????????# #??"" | | ???# #???????????????????# # """ | | ???# #???????????????????# |[ # """ | | ???# #???????????????????# |[ # """ | | ???# #???????????????????# # """ | | ?### #???????????????????# #? | | ?#"" #???????????????????# "T" #??? | | ?#"T #####+#########+##+######+######### | | ?#"" g | | ?### og | | ???# g @ u | | ???###+#####+############################# | | ???????????????????????????????????????? | | ?????????????????????????????????????? | | ?????????????????????????????????????# """ | | ????????????????????????????????????# """ | | ????????????????????????????????????## """ | | ?????????????????????????????????????# | | ?????????????????????????????????????# | | ??????????????????????????????????????? | | ?????????????????????????????????????????# | | ?????????????????????????????????????????? | | ?????????????????????????????????????????? | | ?????????????????????????????????????????? | | ?????????????????????????????????????????? | | ?????????????????????????????????????????? | | ?????????????????????????????????????????? | | ?????????????????????????????????????????? | | ?????????????????????????????????????????? | | ?????????????????????????????????????????? | | ?????????????????????????????????????????? | | ?????????????????????????????????????????? | | ?????????????????????????????????????????? | | ?????????????????????????????????????????? | | ?????????????????????????????????????????? | +----------------------------------------------------+ Best States ------------- Heat Dissipation 31 Energy Generation 5 Energy Capacity 100 Matter Stores 300 Matter Capacity 300 Sight Range 16 Terrain Scan Density 10 Propulsion Shielding 33 Evasion (%) 50 Item Schematics ----------------- None Robot Schematics ------------------ None Fabricated ------------ Nothing Alien Tech Used ----------------- None Achievements -------------- None Challenges ------------ None Game ------ Seed TerrainLobotomyAutogun Manual? 0 Play Time 00:06:11 Cumulative 259.9 hours Start 2022.05.15 @ 01:25:45 End 2022.05.15 @ 01:29:41 Sessions 1 Manual Loads 0 Difficulty Rogue Special Mode None Game No. 430 Rogue 427 Adventurer 0 Explorer 3 Win Type - Total 9 Types 9/0/0/0/0/0/0/0/0 Lore% 71 Gallery% 75 Achievement% 63 Wizard Run 0 Options --------- ASCII 1 Keyboard 1 Movement Vi Keybinds 0 Fullscreen 1 Font 18/SmallcapsGlow Map View 76x50 Tactical HUD 1 Map Filters NONE Filters NONE Steam 1 RUN: 528a468c-faee-4cfd-bf63-27fe6e67de08